bitfinex/quotes_ETHUSD_20251110
["timestamp","ask_amount","ask_price","bid_price","bid_amount"]
[1762737631279,2.7419797,3647.0,3646.7,2.0]
[1762737631280,2.74213008,3646.8,3646.7,2.0]
[1762737631522,3.64411737,3646.8,3646.7,2.0]
[1762737631848,3.91421737,3646.8,3646.7,2.0]
[1762737632057,3.91421737,3646.8,3646.5,0.001]
[1762737632058,2.74228048,3646.6,3646.5,0.001]
[1762737632214,4.12441755,3646.6,3646.5,0.001]
[1762737633153,2.74299964,3645.7,3644.9,1.48]
[1762737633313,3.42828422,3645.0,3644.9,1.48]
[1762737633654,2.74371004,3644.7,3644.2,0.001]
[1762737633834,3.4581273,3644.7,3644.2,0.001]
[1762737634210,3.8636313,3644.7,3644.2,0.001]
[1762737634416,3.14951519,3644.3,3644.2,0.001]
[1762737634611,3.1497411,3644.0,3643.9,0.001]
[1762737634821,3.14981641,3643.9,3643.8,0.001]
[1762737635024,4.81954075,3643.9,3643.8,0.001]
[1762737636212,4.56462349,3643.9,3643.8,0.001]
[1762737636414,2.7448397,3643.2,3643.1,0.001]
[1762737636617,2.8438397,3643.2,3643.1,0.001]
[1762737636861,3.90174765,3643.2,3643.1,0.001]
[1762737637660,1.56241195,3643.2,3643.1,0.001]
[1762737637832,2.8438397,3643.2,3643.1,0.001]
[1762737638169,0.5575,3643.2,3643.1,0.001]
[1762737638525,3.3023397,3643.2,3643.1,0.001]
[1762737639125,0.5575,3643.2,3643.1,0.001]
[1762737639350,3.3023397,3643.2,3643.1,0.001]
[1762737639532,3.90704266,3643.2,3643.1,0.001]
[1762737641565,4.31254666,3643.2,3643.1,0.001]
[1762737643325,3.15041904,3643.1,3640.5,0.1831]
[1762737643530,3.15041904,3643.1,3641.3,1.259712]
[1762737643531,2.74560743,3642.2,3641.3,1.259712]
[1762737643726,0.405504,3642.9,3641.3,0.89541593]
[1762737643926,0.405504,3642.9,3641.0,0.1831]
[1762737643927,0.405504,3642.8,3641.0,0.1831]
[1762737644173,0.6526,3642.9,3641.0,0.1831]
[1762737644174,2.74521646,3642.7,3641.0,0.1831]
[1762737644473,0.6526,3642.9,3640.5,0.1831]
[1762737644474,0.74528565,3642.6,3641.1,0.6596]
[1762737644644,0.1941,3642.9,3641.1,3.40594837]
[1762737644645,2.7455567,3642.3,3641.1,3.40594837]
[1762737644829,0.4585,3642.8,3641.2,3.22283106]
[1762737645035,2.74560458,3642.2,3641.4,1.259712]
[1762737645279,0.4585,3642.8,3641.1,0.1831]
[1762737645280,2.74600588,3641.7,3641.1,0.1831]
[1762737646131,2.74625505,3641.4,3641.1,0.1831]
[1762737646951,2.74621646,3641.4,3641.1,0.1831]
[1762737647154,0.4896,3641.2,3640.6,0.001]
[1762737647353,2.74642278,3641.1,3640.6,0.001]
[1762737647711,2.80652453,3640.7,3640.6,0.001]
[1762737647863,3.21202853,3640.7,3640.6,0.001]
[1762737648177,2.80652453,3640.7,3640.6,0.001]
[1762737648355,3.58470698,3640.7,3640.6,0.001]
[1762737648552,3.99021098,3640.7,3640.6,0.001]
[1762737649191,3.13240698,3640.7,3640.6,0.001]
[1762737649358,3.58470698,3640.7,3640.6,0.001]
[1762737649559,2.80652453,3640.7,3640.6,0.001]
[1762737650860,3.25882453,3640.7,3640.6,0.001]
[1762737651071,2.80652453,3640.7,3640.6,0.001]
[1762737651396,2.80652453,3640.7,3639.0,0.1831]
[1762737651397,0.09999999,3640.1,3638.7,1.36966962]
[1762737651600,0.09999999,3640.1,3638.8,0.26293816]
[1762737651965,2.84718988,3640.1,3639.4,1.259712]
[1762737652315,0.09999999,3640.1,3639.0,2.74793349]
[1762737652630,0.09999999,3639.9,3639.2,2.74784642]
[1762737652762,0.09999999,3639.7,3636.3,2.74998761]
[1762737653096,1.114504,3641.0,3638.2,5.00828347]
[1762737653097,0.09999999,3639.6,3638.2,5.00828347]
[1762737653265,0.09999999,3639.6,3638.4,0.35677538]
[1762737653465,0.1368,3639.4,3638.8,1.396512]
[1762737653773,0.1368,3639.4,3638.8,0.55127139]
[1762737653974,0.1368,3639.2,3638.5,2.88514078]
[1762737654182,0.1368,3639.2,3638.6,4.00797177]
[1762737654386,0.1368,3639.2,3638.8,1.259712]
[1762737654767,0.1368,3639.2,3638.5,0.1368]
[1762737655100,0.1368,3639.2,3637.7,1.482]
[1762737655101,0.1368,3638.8,3638.2,2.88540933]
[1762737655409,0.1368,3638.8,3638.4,1.259712]
[1762737655608,0.1368,3638.8,3638.7,1.259712]
[1762737655806,0.1368,3638.8,3638.2,0.1368]
[1762737655970,0.1368,3638.8,3638.2,0.2764512]
[1762737656611,0.4868,3638.3,3637.8,0.1368]
[1762737656903,0.4868,3638.3,3637.9,1.259712]
[1762737657206,0.1902,3637.9,3637.0,0.1902]
[1762737657423,0.09999999,3638.1,3637.0,0.1902]
[1762737657566,0.09999999,3638.1,3636.9,1.259712]
[1762737657770,0.09999999,3638.1,3637.7,2.741712]
[1762737657970,0.09999999,3638.1,3637.7,1.482]
[1762737658289,0.09999999,3637.8,3637.7,1.482]
[1762737659394,1.665216,3639.2,3637.9,4.00855061]
[1762737659395,0.09999999,3638.0,3637.9,4.00855061]
[1762737659571,0.09999999,3638.4,3637.9,1.259712]
[1762737659916,0.09999999,3638.2,3637.9,0.56388204]
[1762737660199,0.09999999,3638.4,3638.3,2.7485364]
[1762737660405,0.09999999,3638.1,3637.7,1.6302]
[1762737660618,0.09999999,3638.1,3636.9,2.742712]
[1762737660929,0.09999999,3638.3,3638.2,2.74861195]
[1762737661073,0.09999999,3638.3,3638.2,3.02347315]
[1762737661425,0.4523,3639.6,3638.3,1.259712]
[1762737661662,0.09999999,3638.8,3638.2,0.2748612]
[1762737661954,0.09999999,3638.8,3638.7,1.259712]
[1762737662252,0.35354974,3638.8,3638.7,4.00794625]
[1762737662407,4.07700847,3638.8,3638.7,1.259712]
[1762737662606,0.09999999,3638.6,3637.8,0.02748914]
[1762737662801,0.09999999,3638.6,3638.5,4.00809732]
[1762737663003,0.09999999,3638.8,3638.6,2.74824113]
[1762737663207,0.2535532,3638.7,3638.5,0.02748385]
[1762737663409,0.25389119,3638.6,3638.5,2.74838344]
[1762737663608,0.25389119,3638.6,3638.5,2.74838532]
[1762737663849,0.25389119,3638.6,3638.5,4.00809732]
[1762737664052,0.35389118,3638.6,3638.5,1.259712]
[1762737664916,0.83319118,3638.6,3638.5,1.259712]
[1762737665106,2.74860631,3638.3,3637.8,1.259712]
[1762737665337,0.25389119,3638.2,3637.6,4.00876891]
[1762737665642,0.09999999,3637.7,3636.0,2.75027502]
[1762737665842,0.25389119,3637.6,3635.8,1.483]
[1762737666049,0.35389118,3637.5,3636.2,0.82516761]
[1762737666207,0.25389119,3637.4,3637.0,1.259712]
[1762737666406,0.25389119,3637.3,3636.9,1.259712]
[1762737666731,0.25389119,3637.2,3636.9,2.74955768]
[1762737666934,0.09999999,3637.5,3636.0,0.496]
[1762737666935,0.09999999,3637.5,3636.8,1.259712]
[1762737667113,0.39092158,3637.4,3636.8,0.1368]
[1762737667313,0.25412158,3637.3,3636.8,0.1368]
[1762737667635,0.25412158,3637.2,3636.8,2.74966163]
[1762737667945,0.39092158,3637.1,3636.9,2.77704319]
[1762737668266,0.496,3637.9,3636.9,2.77704319]
[1762737668267,1.259712,3638.9,3637.6,1.259712]
[1762737668414,1.259712,3638.9,3637.0,1.259712]
[1762737668415,0.1927,3639.4,3638.9,2.74803002]
[1762737668611,0.1927,3639.4,3637.8,2.74885454]
[1762737668612,0.2540233,3639.3,3637.8,2.74885454]
[1762737668806,0.1927,3638.9,3637.8,2.74891417]
[1762737669011,0.1927,3638.9,3637.7,0.1872]
[1762737669012,3.00222634,3638.8,3637.7,0.1872]
[1762737669245,3.49833425,3638.7,3637.7,2.93618114]
[1762737669453,0.25404615,3638.6,3637.7,0.1872]
[1762737669655,0.25404615,3638.5,3637.8,1.259712]
[1762737669963,0.25419756,3638.4,3637.8,3.16848641]
[1762737670256,0.25438666,3638.3,3637.7,0.1872]
[1762737670423,0.25438666,3638.2,3637.7,1.446912]
[1762737670627,0.25438666,3638.1,3637.7,4.19589007]
[1762737670862,2.74851568,3638.4,3637.7,4.19589007]
[1762737670863,0.25438666,3638.0,3637.7,4.19589007]
[1762737671044,0.496,3638.7,3636.3,0.3743]
[1762737671045,0.672,3637.8,3636.3,0.3743]
[1762737671216,2.896,3638.7,3637.1,2.7494023]
[1762737671217,0.25458603,3637.7,3637.1,2.7494023]
[1762737671414,0.25458603,3637.6,3637.3,2.74929205]
[1762737671750,0.496,3638.6,3637.4,1.28720416]
[1762737671958,1.07502719,3638.5,3637.4,0.02749216]
[1762737672161,0.25460633,3638.4,3637.4,2.77664189]
[1762737672314,2.74870712,3638.1,3637.4,0.02749216]
[1762737672510,0.25460633,3638.0,3637.4,0.02749216]
[1762737672710,0.25460633,3637.9,3637.5,2.74908215]
[1762737673036,0.25460633,3637.8,3637.5,2.74908215]
[1762737673242,0.25460633,3637.7,3637.5,2.74908215]
[1762737673426,0.25460633,3637.6,3637.5,1.259712]
[1762737673615,0.25460633,3637.6,3637.1,2.74938724]
[1762737673960,0.25460633,3637.5,3637.4,1.259712]
[1762737674314,0.25460633,3637.5,3637.4,4.00892847]
[1762737674538,0.25460633,3637.5,3637.4,4.38322847]
[1762737674956,0.25460633,3637.5,3637.4,1.259712]
[1762737675567,2.7495757,3637.0,3636.1,2.93837594]
[1762737675780,2.7495757,3637.0,3636.1,0.001]
[1762737675781,0.1927,3636.2,3636.1,0.001]
[1762737675910,3.67623008,3636.2,3636.1,0.001]
[1762737676111,4.17223008,3636.2,3636.1,0.001]
[1762737677863,4.17223008,3636.2,3635.4,0.001]
[1762737677864,1.42210633,3636.2,3635.4,0.001]
[1762737678028,4.01104639,3634.6,3633.3,2.74053274]
[1762737678229,5.41778051,3634.6,3633.8,0.473]
[1762737678467,5.91378051,3634.6,3633.8,0.473]
[1762737678772,4.26565272,3634.6,3634.4,0.59]
[1762737678938,1.51431833,3634.6,3634.4,0.59]
[1762737679265,1.51431833,3634.6,3634.5,3.12971009]
[1762737679266,1.259712,3634.6,3634.5,3.12971009]
[1762737679463,0.496,3635.9,3634.5,3.12971009]
[1762737679464,0.1368,3635.2,3634.5,1.59627659]
[1762737679637,0.1927,3635.8,3635.0,2.75103163]
[1762737679958,0.1927,3636.8,3635.8,2.75036254]
[1762737680162,0.25479929,3636.7,3635.9,0.708]
[1762737680326,1.259712,3635.8,3634.5,0.001]
[1762737680528,0.1927,3634.6,3634.5,0.001]
[1762737680727,0.44749929,3634.6,3634.5,0.001]
[1762737680929,3.69483368,3634.6,3634.5,0.001]
[1762737681262,4.95454568,3634.6,3634.5,0.001]
[1762737681757,2.20321129,3634.6,3634.5,0.001]
[1762737682158,2.60871529,3634.6,3631.8,0.3773]
[1762737682356,2.60871529,3634.6,3631.6,1.484]
[1762737682357,0.1927,3632.6,3631.6,4.23757843]
[1762737682575,0.25479929,3632.5,3631.7,3.46150551]
[1762737682759,0.25479929,3632.4,3631.8,0.02753455]
[1762737682959,0.1927,3632.9,3631.8,2.75345558]
[1762737683179,0.1927,3632.9,3631.8,0.3783]
[1762737683475,0.1927,3632.9,3632.4,2.752926]
[1762737683651,0.1927,3632.9,3632.8,2.75269764]
[1762737683847,0.1927,3632.9,3632.8,3.46069764]
[1762737684073,0.1927,3633.2,3632.8,0.708]
[1762737684588,0.1927,3633.2,3632.8,3.46068049]
[1762737684740,0.1927,3633.2,3632.8,0.708]
[1762737684942,0.1927,3633.2,3633.1,2.75247034]
[1762737685447,0.1927,3633.2,3632.8,0.708]
[1762737685448,0.496,3633.9,3632.8,0.708]
[1762737685651,0.25395701,3633.7,3632.8,0.709]
[1762737685840,0.1927,3634.1,3632.9,2.75262187]
[1762737686040,0.1927,3634.1,3632.8,0.709]
[1762737686041,0.25395486,3634.0,3632.8,0.709]
[1762737686240,0.25395486,3633.9,3633.4,2.75222298]
[1762737686553,1.259712,3634.5,3632.8,0.709]
[1762737686554,2.75111408,3634.9,3633.9,2.7518635]
[1762737686761,0.25381645,3634.5,3634.0,0.708]
[1762737686960,0.25381645,3634.4,3634.0,0.708]
[1762737687288,0.25381645,3634.3,3632.9,0.1882]
[1762737687474,2.75204914,3633.7,3632.8,0.001]
[1762737687675,2.75253906,3633.1,3632.9,0.708]
[1762737687989,2.75240252,3633.2,3632.9,0.708]
[1762737688196,0.1927,3633.0,3632.9,0.708]
[1762737688550,5.64843372,3635.8,3632.9,0.708]
[1762737688551,0.496,3633.4,3632.9,0.708]
[1762737688850,1.259712,3634.3,3633.0,0.02752546]
[1762737688851,0.496,3633.9,3633.0,0.02752546]
[1762737689046,0.496,3633.9,3632.4,0.001]
[1762737689246,2.75292498,3632.5,3632.4,0.001]
[1762737689488,4.01263698,3632.5,3632.4,0.001]
[1762737689785,2.75322816,3632.1,3632.0,0.001]
[1762737689987,0.1927,3632.1,3632.0,0.001]
[1762737690483,3.44192816,3632.1,3632.0,0.001]
[1762737690700,0.6887,3632.1,3632.0,0.001]
[1762737690850,0.1927,3632.4,3632.0,0.001]
[1762737691250,0.496,3632.7,3632.0,0.001]
[1762737691251,0.496,3632.3,3632.0,0.001]
[1762737691451,2.75322816,3632.1,3632.0,0.001]
[1762737691752,0.496,3632.3,3632.0,0.001]
[1762737691963,2.75292601,3632.5,3632.0,0.001]
[1762737691964,0.496,3632.2,3632.0,0.001]
[1762737692153,2.75313714,3632.3,3632.0,0.001]
[1762737692352,3.21021901,3632.4,3632.0,0.001]
[1762737692659,3.21021009,3632.4,3632.0,0.001]
[1762737692860,0.4572,3632.3,3632.0,0.001]
[1762737693066,2.75322816,3632.1,3632.0,0.001]
[1762737693471,3.21042816,3632.1,3632.0,0.001]
[1762737693790,4.47014016,3632.1,3632.0,0.001]
[1762737694593,4.87564416,3632.1,3632.0,0.001]
[1762737696780,5.36774416,3632.1,3632.0,0.001]
[1762737697095,2.209012,3632.1,3632.0,0.001]
[1762737697454,4.50504016,3632.1,3632.0,0.001]
[1762737697660,0.1927,3632.6,3632.0,0.001]
[1762737697893,2.7530001,3632.5,3632.0,0.001]
[1762737698104,2.7530577,3632.4,3632.0,0.001]
[1762737698401,2.75162127,3634.3,3632.0,0.001]
[1762737698695,2.75162127,3634.3,3632.1,0.0941]
[1762737698696,0.1828,3632.9,3632.1,0.0941]
[1762737698908,0.4572,3633.9,3632.1,0.4744]
[1762737699305,0.4572,3633.9,3632.0,0.001]
[1762737699306,0.1828,3632.2,3632.0,0.001]
[1762737699524,1.259712,3632.7,3632.0,0.001]
[1762737699691,1.259712,3632.8,3632.1,0.0941]
[1762737700020,4.01249107,3632.7,3632.1,0.0941]
[1762737700225,0.1828,3632.8,3632.1,0.0941]
[1762737700387,0.1828,3633.1,3632.1,0.0941]
[1762737700830,2.75249966,3633.1,3632.1,0.0941]
[1762737701152,0.4572,3633.3,3632.0,0.001]
[1762737701153,2.75322816,3632.1,3632.0,0.001]
[1762737701293,0.1376,3632.2,3632.1,0.0941]
[1762737701928,3.20941692,3633.5,3632.1,0.0941]
[1762737702098,0.1376,3632.6,3632.0,0.1386]
[1762737702301,2.89045884,3632.6,3632.0,0.1386]
[1762737702526,0.1376,3632.6,3632.0,0.1386]
[1762737703095,2.75314422,3632.3,3632.0,0.1386]
[1762737703291,0.1376,3632.1,3632.0,0.001]
[1762737704042,0.1396,3632.4,3632.0,0.001]
[1762737704241,0.1396,3632.4,3632.1,0.0941]
[1762737704393,0.1396,3632.4,3632.3,0.3803]
[1762737705226,0.002,3632.4,3632.3,0.3803]
[1762737705426,0.002,3632.4,3632.3,3.13337656]
[1762737705599,0.002,3632.4,3632.0,0.001]
[1762737705802,0.002,3632.4,3632.1,0.0941]
[1762737706003,0.002,3632.4,3632.1,2.8473205]
[1762737706400,0.002,3632.4,3632.1,0.0941]
[1762737706738,0.002,3632.4,3632.0,0.001]
[1762737707099,0.4592,3632.4,3632.0,0.001]
[1762737707300,0.4592,3632.4,3632.1,0.0941]
[1762737707301,0.002,3632.4,3632.1,0.0941]
[1762737707925,2.7530826,3632.3,3632.1,0.0941]
[1762737708124,0.002,3632.4,3632.1,0.0941]
[1762737708535,0.002,3632.4,3632.3,0.3803]
[1762737709215,0.002,3632.4,3632.1,0.0941]
[1762737709414,0.002,3632.4,3632.2,2.75314584]
[1762737709713,0.002,3632.4,3632.0,0.001]
[1762737709902,3.21272816,3632.1,3632.0,0.001]
[1762737710103,3.46851634,3632.1,3632.0,0.001]
[1762737710299,3.94691246,3632.1,3632.0,0.001]
[1762737710715,0.2562843,3632.1,3632.0,0.001]
[1762737710953,3.00951246,3632.1,3632.0,0.001]
[1762737711240,5.20662446,3632.1,3632.0,0.001]
[1762737711820,4.26922446,3632.1,3632.0,0.001]
[1762737712021,5.20662446,3632.1,3632.0,0.001]
[1762737712553,1.51630809,3632.1,3632.0,0.001]
[1762737713366,0.25659609,3632.1,3632.0,0.001]
[1762737714044,0.25659609,3632.1,3632.0,0.3813]
[1762737714229,0.25659609,3632.1,3632.0,3.13460396]
[1762737714428,0.25659609,3632.1,3632.0,0.7616]
[1762737714655,0.002,3632.4,3632.0,0.7616]
[1762737714952,0.2566079,3632.3,3632.1,0.0941]
[1762737715125,0.2566079,3632.2,3632.1,0.0941]
[1762737715526,0.002,3632.4,3632.1,0.4744]
[1762737715757,0.2566838,3632.3,3632.1,0.4744]
[1762737715958,0.2566838,3632.2,3632.1,2.84732816]
[1762737716251,0.002,3632.4,3632.2,2.75314365]
[1762737716555,0.25680452,3632.3,3632.2,2.75315235]
[1762737716722,0.25680452,3632.3,3632.2,3.13345235]
[1762737716919,0.002,3632.4,3632.3,2.75307656]
[1762737717266,0.002,3632.4,3632.3,3.65127656]
[1762737718043,0.25899535,3632.4,3632.3,3.65127656]
[1762737718352,0.25901937,3632.4,3632.3,0.5179]
[1762737718856,0.25901937,3632.4,3632.0,0.001]
[1762737719056,0.25701937,3632.3,3632.1,0.0941]
[1762737719257,0.25701937,3632.2,3632.0,0.1386]
[1762737719457,0.002,3632.4,3632.3,3.22747656]
[1762737719764,0.2591115,3632.4,3632.3,3.22747656]
[1762737719917,0.2591115,3632.4,3632.1,0.1376]
[1762737720120,0.2571115,3632.3,3632.1,0.1376]
[1762737720321,0.2571115,3632.2,3632.1,0.1376]
[1762737720526,0.2571115,3632.2,3632.0,0.001]
[1762737720774,0.2571115,3632.1,3632.0,0.001]
[1762737721556,3.01033966,3632.1,3632.0,0.001]
[1762737721771,0.2571115,3632.1,3632.0,0.001]
[1762737721976,0.2571115,3632.1,3632.0,0.3813]
[1762737722752,0.2571115,3632.1,3632.0,0.001]
[1762737723751,0.2571115,3632.1,3632.0,3.13460396]
[1762737724149,0.002,3632.4,3632.1,2.75319611]
[1762737724351,0.25714124,3632.3,3632.2,0.02753152]
[1762737724577,0.25714124,3632.3,3632.1,0.0941]
[1762737724779,0.002,3632.4,3632.1,0.0941]
[1762737724780,0.25714124,3632.2,3632.1,2.84732816]
[1762737725247,0.25714124,3632.2,3632.1,0.0941]
[1762737725499,0.25714124,3632.2,3632.0,0.001]
[1762737725682,0.25714124,3632.1,3632.0,0.001]
[1762737726489,0.25714124,3632.1,3632.0,3.13460396]
[1762737727302,0.25714124,3632.1,3632.0,3.51490396]
[1762737727751,0.25714124,3632.1,3632.0,3.13460396]
[1762737728308,0.25714124,3632.1,3632.0,0.001]
[1762737730902,0.25714124,3632.1,3632.0,3.51490396]
[1762737731045,3.4773694,3632.1,3632.0,0.001]
[1762737731252,3.87513634,3632.1,3632.0,0.001]
[1762737731477,1.12190818,3632.1,3632.0,0.001]
[1762737731665,0.86174124,3632.1,3632.0,0.001]
[1762737731862,0.39474124,3632.1,3632.0,0.001]
[1762737732280,0.39474124,3632.1,3632.0,2.75430396]
[1762737732699,0.25714124,3632.1,3632.0,3.51490396]
[1762737733400,0.25714124,3632.1,3632.0,3.65250396]
[1762737733890,0.25714124,3632.1,3632.0,3.27220396]
[1762737734085,0.25714124,3632.1,3632.0,4.29309343]
[1762737734262,0.25714124,3632.1,3632.0,3.27220396]
[1762737735187,0.002,3632.4,3632.0,3.27220396]
[1762737735388,0.25749929,3632.3,3632.1,2.75316264]
[1762737735574,0.002,3632.4,3632.0,0.1386]
[1762737735575,0.25749929,3632.2,3632.0,0.1386]
[1762737735773,0.25749929,3632.1,3632.0,2.75430396]
[1762737735976,0.25749929,3632.1,3632.0,0.001]
[1762737736153,0.25749929,3632.1,3632.0,2.75430396]
[1762737736361,0.002,3632.4,3632.3,2.75307656]
[1762737736560,0.25950396,3632.4,3632.3,2.75307656]
[1762737736773,0.25950396,3632.4,3632.3,3.51367656]
[1762737736973,0.25950396,3632.4,3632.3,0.1376]
[1762737737411,0.25950396,3632.4,3632.3,2.89067656]
[1762737737572,0.25950396,3632.4,3632.1,0.0941]
[1762737737767,0.4983,3632.3,3632.0,0.1386]
[1762737738001,0.25748955,3632.2,3632.0,0.001]
[1762737738304,0.86208955,3632.1,3632.0,0.001]
[1762737738472,3.61531771,3632.1,3632.0,0.001]
[1762737738675,4.80048825,3632.1,3632.0,0.001]
[1762737739004,1.41136009,3632.1,3632.0,0.001]
[1762737739701,0.25748955,3632.1,3632.0,0.001]
[1762737740112,0.72448955,3632.1,3632.0,0.001]
[1762737741026,3.97601771,3632.1,3632.0,0.001]
[1762737741934,5.23572971,3632.1,3632.0,0.001]
[1762737742078,5.82926537,3632.1,3632.0,0.001]
[1762737742409,6.76186401,3632.1,3632.0,0.001]
[1762737742774,3.51033585,3632.1,3632.0,0.001]
[1762737743044,5.23572971,3632.1,3632.0,0.001]
[1762737743520,4.73742971,3632.1,3632.0,0.001]
[1762737743682,5.82909103,3632.1,3632.0,0.001]
[1762737746505,5.23572971,3632.1,3632.0,0.001]
[1762737746890,5.82863986,3632.1,3632.0,0.001]
[1762737747085,7.09251753,3632.1,3632.0,0.001]
[1762737747591,0.002,3632.4,3632.0,1.63609308]
[1762737747922,0.002,3632.4,3632.0,0.0971]
[1762737748083,0.002,3632.4,3632.3,2.75307656]
[1762737748282,0.002,3632.4,3632.0,0.001]
[1762737748517,0.002,3632.4,3632.3,3.13337656]
[1762737748684,0.002,3632.4,3632.3,3.7317464]
[1762737748879,0.002,3632.4,3632.3,4.2496464]
[1762737749332,0.002,3632.4,3632.3,3.8693464]
[1762737749987,0.002,3632.4,3632.1,2.75322816]
[1762737750187,0.1396,3632.4,3632.0,0.001]
[1762737750596,0.6379,3632.4,3632.1,2.75321955]
[1762737750798,0.1396,3632.4,3632.2,0.02753152]
[1762737751020,0.002,3632.4,3632.3,3.13337656]
[1762737751510,0.002,3632.4,3632.3,3.27097656]
[1762737751909,1.96646577,3635.2,3634.6,0.3783]
[1762737752110,0.002,3635.4,3634.1,0.0921]
[1762737752111,0.002,3635.4,3635.3,3.15630861]
[1762737752308,0.002,3635.4,3635.3,0.88049886]
[1762737752583,0.002,3635.4,3634.9,0.73229251]
[1762737752817,0.935,3635.4,3634.6,0.73229251]
[1762737753021,0.1939,3634.9,3634.4,0.73229251]
[1762737753228,0.002,3635.4,3634.7,4.0109707]
[1762737753415,0.1939,3637.6,3635.8,0.405504]
[1762737753626,0.1939,3638.3,3636.8,1.13572079]
[1762737753784,0.1939,3639.0,3637.3,0.405504]
[1762737753982,0.1939,3639.0,3638.2,2.7485887]
[1762737754209,0.483,3639.8,3637.6,0.02749065]
[1762737754543,3.23041064,3639.8,3638.6,2.74830024]
[1762737754692,0.483,3639.8,3638.7,0.02748234]
[1762737755037,0.483,3640.0,3638.8,0.708]
[1762737755199,0.483,3640.0,3638.9,0.73548083]
[1762737755389,0.483,3640.6,3639.1,0.405504]
[1762737755620,2.74679124,3640.7,3639.6,2.74754143]
[1762737755823,2.74657364,3640.9,3639.0,0.1176]
[1762737755824,0.483,3640.9,3639.7,0.708]
[1762737756054,2.7472413,3640.1,3639.8,0.708]
[1762737756421,0.483,3640.5,3639.8,0.708]
[1762737756749,2.7472065,3640.1,3639.8,0.708]
[1762737757125,2.74732075,3640.0,3639.8,0.708]
[1762737757320,2.74732822,3639.9,3639.8,0.708]
[1762737757526,2.74725786,3640.0,3639.8,0.708]
[1762737757734,2.74732073,3640.0,3639.8,0.708]
[1762737757926,2.74732822,3639.9,3639.8,0.708]
[1762737758335,3.82807949,3639.9,3639.8,0.708]
[1762737758536,1.08075127,3639.9,3639.0,0.706]
[1762737758744,2.74763706,3639.5,3639.1,0.706]
[1762737758958,2.74763706,3639.5,3638.6,2.74828683]
[1762737758959,2.74763706,3639.5,3639.2,0.706]
[1762737759351,2.94130467,3639.8,3639.2,0.706]
[1762737759547,2.74749099,3639.7,3639.2,0.706]
[1762737759866,2.94134435,3639.8,3639.2,0.706]
[1762737760056,2.7476789,3639.5,3639.2,0.706]
[1762737760227,0.1939,3639.8,3639.2,0.706]
[1762737760964,0.6769,3639.8,3639.2,0.706]
[1762737761163,2.74769939,3639.5,3639.2,0.706]
[1762737761545,2.74778116,3639.3,3639.2,0.706]
[1762737761880,2.7477132,3639.4,3639.0,0.1368]
[1762737762049,3.23064586,3639.5,3639.2,0.706]
[1762737762250,2.74770566,3639.4,3639.2,0.706]
[1762737762768,2.74778116,3639.3,3639.2,0.706]
[1762737762963,0.6198,3639.6,3639.2,0.706]
[1762737763188,0.1939,3639.8,3639.2,0.706]
[1762737763189,2.74778116,3639.3,3639.2,0.706]
[1762737763550,2.74778116,3639.3,3638.0,3.12706248]
[1762737763551,3.82867411,3639.3,3637.4,0.4959]
[1762737763900,2.94136263,3639.8,3638.1,0.1368]
[1762737763901,0.1939,3638.7,3638.1,0.1368]
[1762737764049,0.1368,3638.9,3638.1,0.1368]
[1762737764245,2.74826276,3638.7,3638.1,0.2544]
[1762737764478,2.74826276,3638.7,3638.1,0.55472183]
[1762737764880,0.1939,3638.9,3638.2,0.1176]
[1762737765045,0.1368,3638.8,3638.3,0.706]
[1762737765769,2.74825041,3638.7,3638.3,0.706]
[1762737765969,0.1694,3638.8,3638.3,0.706]
[1762737766168,0.1368,3638.6,3638.3,0.706]
[1762737766375,2.88511617,3638.6,3638.3,0.706]
[1762737767085,0.1368,3638.6,3638.3,0.706]
[1762737767387,2.88516669,3638.6,3638.3,0.706]
[1762737767689,0.1368,3638.6,3638.3,0.706]
[1762737767885,2.74838532,3638.5,3638.3,0.706]
[1762737768051,0.1368,3638.6,3638.3,0.706]
[1762737768052,2.88513436,3638.6,3638.3,0.706]
[1762737768262,0.1368,3638.6,3638.3,0.706]
[1762737770170,2.88517311,3638.6,3638.3,0.706]
[1762737770713,0.1368,3638.6,3638.3,0.706]
[1762737771909,2.74839667,3638.5,3638.3,0.706]
[1762737772078,2.74838532,3638.5,3638.3,0.706]
[1762737772278,2.88513734,3638.6,3638.3,0.706]
[1762737772481,0.1368,3638.6,3638.3,0.706]
[1762737773698,0.1368,3638.6,3638.3,4.26547148]
[1762737773902,0.002,3641.1,3638.9,0.4618]
[1762737774069,0.002,3644.7,3641.4,0.6313]
[1762737774070,0.25101907,3641.9,3641.4,0.6313]
[1762737774444,0.1955,3642.4,3641.4,0.712]
[1762737774708,0.0517,3641.5,3640.6,0.712]
[1762737775004,2.74639346,3641.2,3640.4,0.614]
[1762737775313,2.99729503,3641.4,3640.4,0.614]
[1762737775314,2.74655851,3641.0,3640.4,0.614]
[1762737775665,2.94208767,3640.9,3640.4,0.614]
[1762737775864,0.1955,3640.9,3640.4,0.614]
[1762737776068,0.4763,3640.8,3640.4,0.614]
[1762737776266,2.99860346,3640.7,3640.4,0.614]
[1762737776612,0.4763,3640.8,3640.4,0.614]
[1762737776936,0.72815833,3640.7,3640.4,0.614]
[1762737777073,0.4763,3640.7,3640.4,0.614]
[1762737777265,0.25237994,3640.6,3640.4,0.614]
[1762737777490,0.25237994,3640.5,3640.4,0.614]
[1762737777718,0.25237994,3640.6,3640.4,0.614]
[1762737777900,0.25237994,3640.5,3640.4,0.614]
[1762737778087,3.41841906,3640.9,3640.4,0.614]
[1762737778402,0.25238137,3640.8,3640.4,0.614]
[1762737778710,0.25238137,3640.7,3640.4,0.614]
[1762737778873,0.25238137,3640.6,3640.4,0.614]
[1762737779185,0.1955,3640.9,3640.4,0.614]